[Event "*** Titled Tuesday Blitz"]
[Site "Chess.com"]
[Date "2020.05.05"]
[Round "10"]
[White "floplover"]
[Black "Mikhail_Golubev"]
[Result "1-0"]
[WhiteElo "2318"]
[BlackElo "2501"]
[TimeControl "180+1"]
[EndTime "11:59:26 PDT"]
[Termination "floplover won on time"]

1. d4 {[%clk 0:03:00.9]} 1... Nf6 {[%clk 0:02:59.4]} 2. c4 {[%clk 0:03:01.1]}
2... g6 {[%clk 0:02:59.6]} 3. Nc3 {[%clk 0:03:00.9]} 3... Bg7 {[%clk 0:02:59.8]}
4. e4 {[%clk 0:03:01.1]} 4... d6 {[%clk 0:03:00]} 5. Nf3 {[%clk 0:03:01.5]} 5...
O-O {[%clk 0:02:59.8]} 6. Be2 {[%clk 0:03:02.1]} 6... e5 {[%clk 0:02:59.2]} 7.
O-O {[%clk 0:03:02]} 7... Nc6 {[%clk 0:02:58.5]} 8. d5 {[%clk 0:03:02.4]} 8...
Ne7 {[%clk 0:02:58.4]} 9. b4 {[%clk 0:03:03.3]} 9... Ne8 {[%clk 0:02:58.4]} 10.
Nd2 {[%clk 0:02:59]} 10... f5 {[%clk 0:02:55.9]} 11. c5 {[%clk 0:02:59.1]} 11...
Nf6 {[%clk 0:02:55.9]} 12. Ba3 {[%clk 0:02:40.7]} 12... f4 {[%clk 0:02:37.8]}
13. b5 {[%clk 0:02:39.5]} 13... g5 {[%clk 0:02:37.4]} 14. Nc4 {[%clk 0:02:36.7]}
14... Ne8 {[%clk 0:02:35.6]} 15. Bg4 {[%clk 0:02:36.6]} 15... Ng6 {[%clk
0:02:11.9]} 16. Be6+ {[%clk 0:02:14.2]} 16... Kh8 {[%clk 0:02:04.5]} 17. cxd6
{[%clk 0:02:00.4]} 17... cxd6 {[%clk 0:02:03.6]} 18. b6 {[%clk 0:01:43.6]} 18...
axb6 {[%clk 0:01:48]} 19. Nb5 {[%clk 0:01:43.4]} 19... f3 {[%clk 0:01:41.6]} 20.
g3 {[%clk 0:01:37.2]} 20... Bxe6 {[%clk 0:01:03.8]} 21. dxe6 {[%clk 0:01:36.9]}
21... Qc8 {[%clk 0:01:03.4]} 22. Nxb6 {[%clk 0:01:33.8]} 22... Qxe6 {[%clk
0:01:03.2]} 23. Kh1 {[%clk 0:01:27.6]} 23... Rf6 {[%clk 0:00:37.9]} 24. Nd5
{[%clk 0:01:11.3]} 24... Rf7 {[%clk 0:00:36]} 25. Rc1 {[%clk 0:01:05.9]} 25...
Bf8 {[%clk 0:00:33.2]} 26. Rc3 {[%clk 0:01:03]} 26... g4 {[%clk 0:00:32]} 27.
Ne3 {[%clk 0:00:32.6]} 27... h5 {[%clk 0:00:29.9]} 28. Rd3 {[%clk 0:00:26.9]}
28... h4 {[%clk 0:00:24.6]} 29. Bxd6 {[%clk 0:00:24.7]} 29... Nxd6 {[%clk
0:00:18.5]} 30. Nxd6 {[%clk 0:00:25.6]} 30... Rh7 {[%clk 0:00:18.5]} 31. Ndf5
{[%clk 0:00:24.1]} 31... hxg3 {[%clk 0:00:18.3]} 32. fxg3 {[%clk 0:00:23.1]}
32... Rxa2 {[%clk 0:00:17.3]} 33. Nxg4 {[%clk 0:00:23.1]} 33... Ra8 {[%clk
0:00:11.4]} 34. Qxf3 {[%clk 0:00:23.1]} 34... Rf7 {[%clk 0:00:08.9]} 35. Qe3
{[%clk 0:00:18.2]} 35... Kh7 {[%clk 0:00:04.7]} 36. Qg5 {[%clk 0:00:17.1]} 36...
Ra6 {[%clk 0:00:02.9]} 37. Qh5+ {[%clk 0:00:16.9]} 37... Kg8 {[%clk 0:00:03.1]}
38. Rdf3 {[%clk 0:00:11.1]} 38... Rh7 {[%clk 0:00:02.2]} 39. Nfh6+ {[%clk
0:00:09.7]} 39... Bxh6 {[%clk 0:00:01.6]} 40. Nxh6+ {[%clk 0:00:09.7]} 1-0

[Event "*** Titled Tuesday Blitz"]
[Site "Chess.com"]
[Date "2020.05.05"]
[Round "10"]
[White "Grandelicious"]
[Black "Trankuilizer"]
[Result "1-0"]
[WhiteElo "2748"]
[BlackElo "2549"]
[TimeControl "180+1"]
[EndTime "11:59:33 PDT"]
[Termination "Grandelicious won by resignation"]

1. Nf3 {[%clk 0:03:00.9]} 1... Nf6 {[%clk 0:02:58]} 2. g3 {[%clk 0:03:00.8]}
2... g6 {[%clk 0:02:58]} 3. b3 {[%clk 0:03:00.6]} 3... Bg7 {[%clk 0:02:58.1]} 4.
Bb2 {[%clk 0:03:01.3]} 4... O-O {[%clk 0:02:58.6]} 5. Bg2 {[%clk 0:03:01.9]}
5... d6 {[%clk 0:02:59]} 6. d4 {[%clk 0:03:01.6]} 6... b6 {[%clk 0:02:57]} 7.
O-O {[%clk 0:02:56]} 7... Bb7 {[%clk 0:02:56.9]} 8. c4 {[%clk 0:02:54.3]} 8...
Nbd7 {[%clk 0:02:52.9]} 9. Qc2 {[%clk 0:02:51.1]} 9... c5 {[%clk 0:02:52.2]} 10.
d5 {[%clk 0:02:48]} 10... b5 {[%clk 0:02:52.2]} 11. Nc3 {[%clk 0:02:41.3]} 11...
bxc4 {[%clk 0:02:42.9]} 12. bxc4 {[%clk 0:02:41.3]} 12... Ba6 {[%clk 0:02:40.7]}
13. Nd2 {[%clk 0:02:38]} 13... Rb8 {[%clk 0:02:40.1]} 14. Rab1 {[%clk 0:02:38]}
14... Qa5 {[%clk 0:02:37.3]} 15. Rfc1 {[%clk 0:02:20.4]} 15... Ng4 {[%clk
0:02:30.9]} 16. h3 {[%clk 0:02:15.7]} 16... Nge5 {[%clk 0:02:30.8]} 17. Nd1
{[%clk 0:02:14.4]} 17... Nb6 {[%clk 0:02:26.8]} 18. Ne3 {[%clk 0:02:09.1]} 18...
Qa4 {[%clk 0:02:12.6]} 19. Qc3 {[%clk 0:01:57.3]} 19... Nf3+ {[%clk 0:02:08.1]}
20. Bxf3 {[%clk 0:01:54.2]} 20... Bxc3 {[%clk 0:02:09]} 21. Rxc3 {[%clk
0:01:51.3]} 21... Qd7 {[%clk 0:01:57.8]} 22. Rb3 {[%clk 0:01:47.9]} 22... Na4
{[%clk 0:01:48.6]} 23. Ba1 {[%clk 0:01:45.6]} 23... Rxb3 {[%clk 0:01:48.1]} 24.
axb3 {[%clk 0:01:43.9]} 24... Nb6 {[%clk 0:01:48.5]} 25. h4 {[%clk 0:01:32]}
25... h5 {[%clk 0:01:46.2]} 26. g4 {[%clk 0:01:27.6]} 26... e5 {[%clk
0:01:40.2]} 27. dxe6 {[%clk 0:01:18.8]} 27... fxe6 {[%clk 0:01:26.9]} 28. gxh5
{[%clk 0:01:12.5]} 28... gxh5 {[%clk 0:01:27]} 29. Kh2 {[%clk 0:01:09.7]} 29...
e5 {[%clk 0:01:24.7]} 30. Rg1+ {[%clk 0:01:05.4]} 30... Kh8 {[%clk 0:01:24.7]}
31. Ne4 {[%clk 0:01:00.6]} 31... Rf4 {[%clk 0:01:20]} 32. Rg5 {[%clk 0:00:46.3]}
32... Rxh4+ {[%clk 0:01:18.3]} 33. Kg1 {[%clk 0:00:46.8]} 33... Qd8 {[%clk
0:00:41]} 34. Nf5 {[%clk 0:00:35.9]} 34... Rxe4 {[%clk 0:00:13.2]} 35. Rxh5+
{[%clk 0:00:36.1]} 35... Kg8 {[%clk 0:00:13.7]} 36. Bxe4 {[%clk 0:00:37]} 36...
Bc8 {[%clk 0:00:14]} 37. Ng3 {[%clk 0:00:33]} 37... Qf6 {[%clk 0:00:11.7]} 38.
Bc3 {[%clk 0:00:30.9]} 38... Bg4 {[%clk 0:00:11.1]} 39. Rh7 {[%clk 0:00:30.2]}
39... Nd7 {[%clk 0:00:09.8]} 40. Bd2 {[%clk 0:00:28.6]} 40... Be6 {[%clk
0:00:05.4]} 41. Rh6 {[%clk 0:00:26.2]} 41... Qg7 {[%clk 0:00:04.3]} 42. Rg6
{[%clk 0:00:26.3]} 42... Nf6 {[%clk 0:00:03.8]} 43. Rxg7+ {[%clk 0:00:25.8]}
43... Kxg7 {[%clk 0:00:04.7]} 44. Bd3 {[%clk 0:00:23.3]} 1-0

[Event "*** Titled Tuesday Blitz"]
[Site "Chess.com"]
[Date "2020.05.05"]
[Round "10"]
[White "Usurpov"]
[Black "Caterpiller35"]
[Result "1/2-1/2"]
[WhiteElo "2442"]
[BlackElo "2312"]
[TimeControl "180+1"]
[EndTime "11:59:33 PDT"]
[Termination "Game drawn - insufficient material"]

1. e4 {[%clk 0:03:00.9]} 1... c5 {[%clk 0:02:59.7]} 2. Nf3 {[%clk 0:03:00.3]}
2... Nc6 {[%clk 0:02:59]} 3. d4 {[%clk 0:02:59.9]} 3... cxd4 {[%clk 0:02:57.2]}
4. Nxd4 {[%clk 0:03:00.8]} 4... e5 {[%clk 0:02:57.9]} 5. Nb5 {[%clk 0:03:00.4]}
5... d6 {[%clk 0:02:57.7]} 6. c4 {[%clk 0:02:58.1]} 6... Be7 {[%clk 0:02:57.4]}
7. N1c3 {[%clk 0:02:55.1]} 7... a6 {[%clk 0:02:57.6]} 8. Na3 {[%clk 0:02:55.2]}
8... Be6 {[%clk 0:02:58.5]} 9. Be2 {[%clk 0:02:54.1]} 9... Bg5 {[%clk
0:02:58.4]} 10. O-O {[%clk 0:02:53]} 10... Bxc1 {[%clk 0:02:58.2]} 11. Rxc1
{[%clk 0:02:53.9]} 11... Nd4 {[%clk 0:02:56.5]} 12. Nc2 {[%clk 0:02:51.6]} 12...
Nxe2+ {[%clk 0:02:55.4]} 13. Qxe2 {[%clk 0:02:52.5]} 13... Rc8 {[%clk
0:02:55.6]} 14. Ne3 {[%clk 0:02:50.4]} 14... Nf6 {[%clk 0:02:54.5]} 15. b3
{[%clk 0:02:45.4]} 15... O-O {[%clk 0:02:54.1]} 16. Rfd1 {[%clk 0:02:43.9]}
16... Rc6 {[%clk 0:02:20.3]} 17. a4 {[%clk 0:02:36.2]} 17... Qb6 {[%clk
0:02:18.7]} 18. Qc2 {[%clk 0:02:31.5]} 18... Rc5 {[%clk 0:02:12.8]} 19. Rb1
{[%clk 0:02:23.7]} 19... Rfc8 {[%clk 0:02:10.7]} 20. Qd2 {[%clk 0:02:17.7]}
20... Qb4 {[%clk 0:02:08.5]} 21. f3 {[%clk 0:02:01.7]} 21... Kf8 {[%clk
0:02:07.9]} 22. g3 {[%clk 0:01:58.5]} 22... g6 {[%clk 0:02:06.2]} 23. Kg2 {[%clk
0:01:55.2]} 23... h5 {[%clk 0:02:06]} 24. h4 {[%clk 0:01:52.1]} 24... Kg7 {[%clk
0:02:04.1]} 25. Nc2 {[%clk 0:01:28.3]} 25... Qb6 {[%clk 0:02:00.6]} 26. Qxd6
{[%clk 0:01:24.7]} 26... Qxd6 {[%clk 0:02:00.8]} 27. Rxd6 {[%clk 0:01:25.2]}
27... b5 {[%clk 0:02:01.7]} 28. axb5 {[%clk 0:01:10.2]} 28... axb5 {[%clk
0:02:01.4]} 29. Ne3 {[%clk 0:01:02.3]} 29... bxc4 {[%clk 0:01:57.4]} 30. b4
{[%clk 0:00:39.9]} 30... R5c7 {[%clk 0:01:57.4]} 31. b5 {[%clk 0:00:27]} 31...
Rb8 {[%clk 0:01:56.5]} 32. f4 {[%clk 0:00:20.7]} 32... exf4 {[%clk 0:01:54.7]}
33. gxf4 {[%clk 0:00:21.6]} 33... Rd7 {[%clk 0:01:55.1]} 34. Rxd7 {[%clk
0:00:19]} 34... Nxd7 {[%clk 0:01:51.3]} 35. f5 {[%clk 0:00:18.6]} 35... gxf5
{[%clk 0:01:46.2]} 36. exf5 {[%clk 0:00:19.5]} 36... Kf6 {[%clk 0:01:42.3]} 37.
fxe6 {[%clk 0:00:19.5]} 37... Ne5 {[%clk 0:01:42]} 38. exf7 {[%clk 0:00:18.1]}
38... Kxf7 {[%clk 0:01:42.3]} 39. Rd1 {[%clk 0:00:17.5]} 39... Ke6 {[%clk
0:01:42.2]} 40. Rd4 {[%clk 0:00:16.8]} 40... Rg8+ {[%clk 0:01:39.7]} 41. Kf2
{[%clk 0:00:16.1]} 41... Nd3+ {[%clk 0:01:36]} 42. Ke2 {[%clk 0:00:14.8]} 42...
Rg3 {[%clk 0:01:31.5]} 43. Rxc4 {[%clk 0:00:10.7]} 43... Ne5 {[%clk 0:01:31.1]}
44. Re4 {[%clk 0:00:10.2]} 44... Rh3 {[%clk 0:01:27.9]} 45. Ncd5 {[%clk
0:00:09.3]} 45... Kd6 {[%clk 0:01:24.9]} 46. Kd2 {[%clk 0:00:08.6]} 46... Rh2+
{[%clk 0:01:21.2]} 47. Kc3 {[%clk 0:00:08.5]} 47... Nd7 {[%clk 0:01:19.4]} 48.
Re8 {[%clk 0:00:06.4]} 48... Rxh4 {[%clk 0:01:18]} 49. Rh8 {[%clk 0:00:05.4]}
49... Rh3 {[%clk 0:01:16.5]} 50. Rh6+ {[%clk 0:00:05.4]} 50... Kc5 {[%clk
0:01:16]} 51. Kd3 {[%clk 0:00:04.7]} 51... Kxb5 {[%clk 0:01:11.5]} 52. Nf4
{[%clk 0:00:03.5]} 52... Ne5+ {[%clk 0:01:08.7]} 53. Ke4 {[%clk 0:00:03]} 53...
Rxe3+ {[%clk 0:01:08.8]} 54. Kxe3 {[%clk 0:00:01.1]} 54... Ng4+ {[%clk
0:01:09.1]} 55. Kf3 {[%clk 0:00:01.2]} 55... Nxh6 {[%clk 0:01:10]} 56. Nxh5
{[%clk 0:00:01.9]} 1/2-1/2

[Event "*** Titled Tuesday Blitz"]
[Site "Chess.com"]
[Date "2020.05.05"]
[Round "10"]
[White "chessdjw"]
[Black "AminMolaei"]
[Result "0-1"]
[WhiteElo "2641"]
[BlackElo "2538"]
[TimeControl "180+1"]
[EndTime "11:59:34 PDT"]
[Termination "AminMolaei won on time"]

1. e4 {[%clk 0:03:00.9]} 1... c5 {[%clk 0:02:59.6]} 2. Nf3 {[%clk 0:03:00.2]}
2... g6 {[%clk 0:02:59.1]} 3. c4 {[%clk 0:02:59.7]} 3... Nc6 {[%clk 0:02:58.5]}
4. d4 {[%clk 0:02:58.5]} 4... cxd4 {[%clk 0:02:59.4]} 5. Nxd4 {[%clk 0:02:58]}
5... Nf6 {[%clk 0:02:59.7]} 6. Nc3 {[%clk 0:02:57.4]} 6... d6 {[%clk 0:02:58.5]}
7. Be2 {[%clk 0:02:57.4]} 7... Nxd4 {[%clk 0:02:58.5]} 8. Qxd4 {[%clk
0:02:58.3]} 8... Bg7 {[%clk 0:02:59.4]} 9. Be3 {[%clk 0:02:58.2]} 9... O-O
{[%clk 0:02:59.6]} 10. Qd2 {[%clk 0:02:58.9]} 10... a5 {[%clk 0:02:59.8]} 11. f3
{[%clk 0:02:59]} 11... a4 {[%clk 0:02:59.8]} 12. Kf2 {[%clk 0:02:59.7]} 12...
Be6 {[%clk 0:02:58.2]} 13. g4 {[%clk 0:02:57.2]} 13... Qa5 {[%clk 0:02:57.1]}
14. Nd5 {[%clk 0:02:45.3]} 14... Bxd5 {[%clk 0:02:56.3]} 15. cxd5 {[%clk
0:02:44.7]} 15... Qxd2 {[%clk 0:02:42.2]} 16. Bxd2 {[%clk 0:02:44.3]} 16... Nd7
{[%clk 0:02:42.6]} 17. Rab1 {[%clk 0:02:31.2]} 17... Rfc8 {[%clk 0:02:41.3]} 18.
Rhc1 {[%clk 0:02:22.4]} 18... Bd4+ {[%clk 0:02:32]} 19. Ke1 {[%clk 0:02:14.7]}
19... Rxc1+ {[%clk 0:02:13.1]} 20. Rxc1 {[%clk 0:02:13.4]} 20... Nc5 {[%clk
0:02:12.4]} 21. Rc2 {[%clk 0:02:08.1]} 21... Kg7 {[%clk 0:01:24.5]} 22. Bb5
{[%clk 0:02:08.1]} 22... f5 {[%clk 0:01:20.4]} 23. exf5 {[%clk 0:02:04.6]} 23...
gxf5 {[%clk 0:01:21.3]} 24. h3 {[%clk 0:01:42.6]} 24... Kf6 {[%clk 0:01:19.6]}
25. Bc1 {[%clk 0:01:18.5]} 25... Ra5 {[%clk 0:01:05.8]} 26. Bc4 {[%clk
0:01:05.4]} 26... Ra8 {[%clk 0:00:34.2]} 27. Re2 {[%clk 0:01:01.1]} 27... fxg4
{[%clk 0:00:28.1]} 28. hxg4 {[%clk 0:00:53.8]} 28... Kf7 {[%clk 0:00:27.7]} 29.
Bh6 {[%clk 0:00:23.7]} 29... b5 {[%clk 0:00:24.4]} 30. Bxb5 {[%clk 0:00:22.7]}
30... Rb8 {[%clk 0:00:24.6]} 31. Bc4 {[%clk 0:00:21.2]} 31... Bxb2 {[%clk
0:00:20.9]} 32. Kf2 {[%clk 0:00:18.5]} 32... Bd4+ {[%clk 0:00:20.6]} 33. Kg3
{[%clk 0:00:18.2]} 33... Rb4 {[%clk 0:00:19.9]} 34. Rc2 {[%clk 0:00:16.7]} 34...
Be5+ {[%clk 0:00:19.9]} 35. Kg2 {[%clk 0:00:13]} 35... a3 {[%clk 0:00:18.7]} 36.
Bc1 {[%clk 0:00:09.6]} 36... Bb2 {[%clk 0:00:17.7]} 37. Bd2 {[%clk 0:00:10.1]}
37... Rb8 {[%clk 0:00:17.1]} 38. Be2 {[%clk 0:00:10.2]} 38... Be5 {[%clk
0:00:16.3]} 39. Bc1 {[%clk 0:00:10.5]} 39... Rb2 {[%clk 0:00:15.9]} 40. Be3
{[%clk 0:00:11.1]} 40... Rxc2 {[%clk 0:00:15.4]} 0-1

[Event "*** Titled Tuesday Blitz"]
[Site "Chess.com"]
[Date "2020.05.05"]
[Round "10"]
[White "Petrosyan_Tigran"]
[Black "Angel_Hranitel_37"]
[Result "0-1"]
[WhiteElo "2527"]
[BlackElo "2400"]
[TimeControl "180+1"]
[EndTime "11:59:34 PDT"]
[Termination "Angel_Hranitel_37 won by resignation"]

1. Nf3 {[%clk 0:03:00.9]} 1... Nf6 {[%clk 0:03:00.1]} 2. c4 {[%clk 0:03:00]}
2... g6 {[%clk 0:03:00]} 3. Nc3 {[%clk 0:02:59.2]} 3... Bg7 {[%clk 0:03:00.6]}
4. g3 {[%clk 0:02:59]} 4... O-O {[%clk 0:02:59.9]} 5. Bg2 {[%clk 0:02:59.5]}
5... d6 {[%clk 0:03:00]} 6. O-O {[%clk 0:02:59.5]} 6... Nc6 {[%clk 0:03:00.7]}
7. d4 {[%clk 0:02:58.7]} 7... Bf5 {[%clk 0:03:01.3]} 8. d5 {[%clk 0:02:54.4]}
8... Na5 {[%clk 0:03:01.7]} 9. Nd2 {[%clk 0:02:53.7]} 9... c5 {[%clk 0:03:00.1]}
10. e4 {[%clk 0:02:52.5]} 10... Bg4 {[%clk 0:02:57.9]} 11. Qc2 {[%clk
0:02:50.4]} 11... a6 {[%clk 0:02:53]} 12. Rb1 {[%clk 0:02:47.8]} 12... Rb8
{[%clk 0:02:52.8]} 13. b3 {[%clk 0:02:46.9]} 13... b5 {[%clk 0:02:51.6]} 14. Bb2
{[%clk 0:02:41.8]} 14... Qd7 {[%clk 0:02:34.8]} 15. f3 {[%clk 0:02:29.4]} 15...
Bh3 {[%clk 0:02:34.9]} 16. Ne2 {[%clk 0:02:29]} 16... Bxg2 {[%clk 0:02:32.5]}
17. Kxg2 {[%clk 0:02:28.8]} 17... bxc4 {[%clk 0:01:23.6]} 18. bxc4 {[%clk
0:02:29.7]} 18... Rb4 {[%clk 0:01:24.1]} 19. a3 {[%clk 0:02:18.7]} 19... Ra4
{[%clk 0:01:18.5]} 20. Nc3 {[%clk 0:01:52.7]} 20... Rxc4 {[%clk 0:01:18]} 21.
Nxc4 {[%clk 0:01:51.8]} 21... Nxc4 {[%clk 0:01:18.9]} 22. Bc1 {[%clk 0:01:49.4]}
22... e6 {[%clk 0:00:42.9]} 23. Qd3 {[%clk 0:01:42.2]} 23... exd5 {[%clk
0:00:41.9]} 24. exd5 {[%clk 0:01:37.9]} 24... Ne5 {[%clk 0:00:41.3]} 25. Qxa6
{[%clk 0:01:34.2]} 25... Qf5 {[%clk 0:00:41.6]} 26. Bf4 {[%clk 0:01:01.8]} 26...
Qc2+ {[%clk 0:00:36.3]} 27. Ne2 {[%clk 0:01:01.8]} 27... Nd3 {[%clk 0:00:35.6]}
28. Rbe1 {[%clk 0:00:37.8]} 28... Nxd5 {[%clk 0:00:28.2]} 29. Qxd6 {[%clk
0:00:22.3]} 29... N5xf4+ {[%clk 0:00:19.1]} 30. gxf4 {[%clk 0:00:18]} 30... Re8
{[%clk 0:00:19.7]} 31. Kg1 {[%clk 0:00:11.5]} 31... Nxe1 {[%clk 0:00:19.3]} 32.
Rxe1 {[%clk 0:00:11.3]} 32... Rxe2 {[%clk 0:00:19.9]} 33. Qb8+ {[%clk
0:00:08.6]} 33... Bf8 {[%clk 0:00:19.6]} 34. Rxe2 {[%clk 0:00:07.8]} 34... Qxe2
{[%clk 0:00:20.5]} 35. a4 {[%clk 0:00:06.8]} 35... c4 {[%clk 0:00:21]} 36. a5
{[%clk 0:00:05.5]} 36... c3 {[%clk 0:00:21.5]} 37. a6 {[%clk 0:00:05.9]} 37...
Qxa6 {[%clk 0:00:21]} 38. Qe5 {[%clk 0:00:05.1]} 38... Qc6 {[%clk 0:00:20]} 0-1

[Event "*** Titled Tuesday Blitz"]
[Site "Chess.com"]
[Date "2020.05.05"]
[Round "10"]
[White "emperor87"]
[Black "CarlssonLudvig"]
[Result "1-0"]
[WhiteElo "2572"]
[BlackElo "2448"]
[TimeControl "180+1"]
[EndTime "11:59:35 PDT"]
[Termination "emperor87 won on time"]

1. e4 {[%clk 0:03:00.9]} 1... e5 {[%clk 0:02:59.8]} 2. Nf3 {[%clk 0:03:00.9]}
2... Nc6 {[%clk 0:03:00.1]} 3. Bc4 {[%clk 0:03:00.8]} 3... Nf6 {[%clk
0:02:59.3]} 4. d3 {[%clk 0:02:59.6]} 4... Bc5 {[%clk 0:02:58.6]} 5. O-O {[%clk
0:02:59.2]} 5... h6 {[%clk 0:02:57.3]} 6. a4 {[%clk 0:02:59]} 6... d6 {[%clk
0:02:56]} 7. c3 {[%clk 0:02:59]} 7... a6 {[%clk 0:02:52.1]} 8. Re1 {[%clk
0:02:58.3]} 8... O-O {[%clk 0:02:51.8]} 9. Na3 {[%clk 0:02:58.4]} 9... Ba7
{[%clk 0:02:42.6]} 10. Nc2 {[%clk 0:02:58.3]} 10... Re8 {[%clk 0:02:39.2]} 11.
Be3 {[%clk 0:02:58.3]} 11... Be6 {[%clk 0:02:34.6]} 12. Bxa7 {[%clk 0:02:55]}
12... Bxc4 {[%clk 0:02:30.9]} 13. dxc4 {[%clk 0:02:54.5]} 13... Rxa7 {[%clk
0:02:30.8]} 14. a5 {[%clk 0:02:54.7]} 14... Ra8 {[%clk 0:02:30.5]} 15. b4 {[%clk
0:02:52.1]} 15... Qd7 {[%clk 0:02:27.3]} 16. Qd3 {[%clk 0:02:50.8]} 16... Nh5
{[%clk 0:02:25.7]} 17. g3 {[%clk 0:02:50.1]} 17... Qh3 {[%clk 0:02:21.6]} 18.
Qf1 {[%clk 0:02:43.6]} 18... Qg4 {[%clk 0:02:12.1]} 19. Qg2 {[%clk 0:02:42.8]}
19... Nf6 {[%clk 0:01:56.9]} 20. h3 {[%clk 0:02:41.5]} 20... Qe6 {[%clk
0:01:56.9]} 21. Nd2 {[%clk 0:02:38.9]} 21... Ne7 {[%clk 0:01:32]} 22. Ne3 {[%clk
0:02:37.9]} 22... Qd7 {[%clk 0:01:27.9]} 23. Kh2 {[%clk 0:02:31]} 23... Ng6
{[%clk 0:01:27.7]} 24. Nd5 {[%clk 0:02:26.8]} 24... Nxd5 {[%clk 0:01:27.3]} 25.
cxd5 {[%clk 0:02:26.3]} 25... Rf8 {[%clk 0:01:18.3]} 26. c4 {[%clk 0:02:22.2]}
26... h5 {[%clk 0:01:08.4]} 27. h4 {[%clk 0:02:15.2]} 27... Ne7 {[%clk
0:00:55.7]} 28. f4 {[%clk 0:02:10.4]} 28... exf4 {[%clk 0:00:48.1]} 29. gxf4
{[%clk 0:02:08.9]} 29... Ng6 {[%clk 0:00:48.2]} 30. Qg3 {[%clk 0:02:08.1]} 30...
Qg4 {[%clk 0:00:43.5]} 31. Qxg4 {[%clk 0:02:07.1]} 31... hxg4 {[%clk 0:00:43.8]}
32. Kg3 {[%clk 0:02:07]} 32... f5 {[%clk 0:00:44.1]} 33. h5 {[%clk 0:02:03.7]}
33... Ne7 {[%clk 0:00:34.6]} 34. e5 {[%clk 0:02:03.2]} 34... Rae8 {[%clk
0:00:30.9]} 35. exd6 {[%clk 0:01:44.6]} 35... cxd6 {[%clk 0:00:31.8]} 36. Re6
{[%clk 0:01:44.4]} 36... Kf7 {[%clk 0:00:31.9]} 37. Rae1 {[%clk 0:01:38.4]}
37... Ng8 {[%clk 0:00:25.2]} 38. Nf1 {[%clk 0:01:28.9]} 38... Nf6 {[%clk
0:00:24.1]} 39. Rxe8 {[%clk 0:01:28.5]} 39... Rxe8 {[%clk 0:00:22.1]} 40. Rxe8
{[%clk 0:01:28.4]} 40... Kxe8 {[%clk 0:00:22.1]} 41. Kh4 {[%clk 0:01:28.6]}
41... Ng8 {[%clk 0:00:12]} 42. Ng3 {[%clk 0:01:23]} 42... Ne7 {[%clk 0:00:12.2]}
43. c5 {[%clk 0:01:14.4]} 43... Kd7 {[%clk 0:00:12.1]} 44. Kg5 {[%clk
0:01:10.9]} 44... Kc7 {[%clk 0:00:10.5]} 45. Nf1 {[%clk 0:00:55]} 45... Kd7
{[%clk 0:00:05.3]} 46. Ne3 {[%clk 0:00:35.2]} 46... Kc7 {[%clk 0:00:05.7]} 47.
Kh4 {[%clk 0:00:35.1]} 47... Kd7 {[%clk 0:00:06]} 48. Kg3 {[%clk 0:00:34.6]}
48... Kd8 {[%clk 0:00:02.2]} 49. cxd6 {[%clk 0:00:33.2]} 1-0

[Event "*** Titled Tuesday Blitz"]
[Site "Chess.com"]
[Date "2020.05.05"]
[Round "10"]
[White "salomez"]
[Black "PavelChernomordik"]
[Result "0-1"]
[WhiteElo "2238"]
[BlackElo "2406"]
[TimeControl "180+1"]
[EndTime "11:59:36 PDT"]
[Termination "PavelChernomordik won on time"]

1. e4 {[%clk 0:02:59]} 1... g6 {[%clk 0:03:00.1]} 2. d4 {[%clk 0:02:58.4]} 2...
Bg7 {[%clk 0:03:00.4]} 3. Nc3 {[%clk 0:02:58.2]} 3... d6 {[%clk 0:02:59.6]} 4.
Be3 {[%clk 0:02:57.3]} 4... c6 {[%clk 0:02:59.2]} 5. Nf3 {[%clk 0:02:54.5]} 5...
b5 {[%clk 0:02:58.4]} 6. Bd3 {[%clk 0:02:53.7]} 6... Nf6 {[%clk 0:02:54.3]} 7.
Qd2 {[%clk 0:02:51.7]} 7... Ng4 {[%clk 0:02:47.4]} 8. Bg5 {[%clk 0:02:49.7]}
8... h6 {[%clk 0:02:43.4]} 9. Bh4 {[%clk 0:02:49]} 9... g5 {[%clk 0:02:36.2]}
10. Bg3 {[%clk 0:02:47.8]} 10... e5 {[%clk 0:02:35.2]} 11. d5 {[%clk 0:02:38.6]}
11... b4 {[%clk 0:02:33]} 12. Ne2 {[%clk 0:02:28]} 12... c5 {[%clk 0:02:31.2]}
13. c3 {[%clk 0:02:22.6]} 13... a5 {[%clk 0:02:28.8]} 14. h4 {[%clk 0:02:18.1]}
14... f6 {[%clk 0:02:22.6]} 15. hxg5 {[%clk 0:02:14.7]} 15... fxg5 {[%clk
0:02:17.8]} 16. Nh2 {[%clk 0:02:04.3]} 16... Nf6 {[%clk 0:02:15.9]} 17. f3
{[%clk 0:02:01]} 17... Ba6 {[%clk 0:02:11.6]} 18. Bxa6 {[%clk 0:01:56.7]} 18...
Nxa6 {[%clk 0:02:10.2]} 19. c4 {[%clk 0:01:55.4]} 19... h5 {[%clk 0:02:04.6]}
20. Nf1 {[%clk 0:01:44.6]} 20... Bh6 {[%clk 0:02:01.9]} 21. Qc2 {[%clk
0:01:39.8]} 21... g4 {[%clk 0:01:51.4]} 22. fxg4 {[%clk 0:01:33.4]} 22... Nxg4
{[%clk 0:01:47.2]} 23. Qb3 {[%clk 0:01:08.5]} 23... Nc7 {[%clk 0:01:35.4]} 24.
Nd2 {[%clk 0:01:01.3]} 24... a4 {[%clk 0:01:30.1]} 25. Qd3 {[%clk 0:00:59.8]}
25... Qg5 {[%clk 0:01:21.8]} 26. Nf3 {[%clk 0:00:57.5]} 26... Qe3 {[%clk
0:01:08.1]} 27. Qxe3 {[%clk 0:00:53]} 27... Nxe3 {[%clk 0:01:03.9]} 28. Kf2
{[%clk 0:00:47.5]} 28... Nxc4 {[%clk 0:01:01]} 29. b3 {[%clk 0:00:34]} 29... Nd2
{[%clk 0:00:54.6]} 30. Rxh5 {[%clk 0:00:26.2]} 30... Nxe4+ {[%clk 0:00:50.8]}
31. Kf1 {[%clk 0:00:21.9]} 31... Nxd5 {[%clk 0:00:44.6]} 32. Bxe5 {[%clk
0:00:12.1]} 32... dxe5 {[%clk 0:00:30.6]} 33. Rxe5+ {[%clk 0:00:13]} 33... Kf7
{[%clk 0:00:28.3]} 34. Rxe4 {[%clk 0:00:10.9]} 34... axb3 {[%clk 0:00:26.7]} 35.
Re5 {[%clk 0:00:03.5]} 35... Ne3+ {[%clk 0:00:22.9]} 36. Kg1 {[%clk 0:00:02.1]}
36... Rxa2 {[%clk 0:00:21]} 0-1